bitfinex-derivatives/quotes_SOLF0:USTF0_20240926
["timestamp","ask_amount","ask_price","bid_price","bid_amount"]
[1727356319507,3.2725,152.78,152.75,3.2729]
[1727356320110,3.2725,152.78,152.76,3.2729]
[1727356321911,3.3035276,152.82,152.71,5.2094]
[1727356322112,11.07,152.73,152.71,5.2094]
[1727356322311,11.07,152.73,152.69,3.24032226]
[1727356322507,11.07,152.73,152.69,11.07]
[1727356322711,11.07,152.72,152.67,97.536]
[1727356322914,14.3439,152.72,152.69,3.2743]
[1727356323412,11.07,152.72,152.69,3.2743]
[1727356324009,3.2737,152.73,152.69,11.07]
[1727356324411,14.3435,152.74,152.7,3.274]
[1727356325411,3.2735,152.74,152.7,14.344]
[1727356327120,3.2735,152.74,152.7,3.274]
[1727356329020,3.2735,152.74,152.71,3.2739]
[1727356330719,3.2735,152.74,152.71,14.3439]
[1727356332817,3.2735,152.74,152.71,3.2739]
[1727356333620,11.07,152.75,152.7,11.07]
[1727356334522,3.2734,152.74,152.71,3.2739]
[1727356335418,3.2733,152.75,152.7,11.07]
[1727356335613,14.3433,152.75,152.7,11.07]
[1727356336218,3.2734,152.74,152.71,3.2738]
[1727356337117,14.3432,152.75,152.71,3.2738]
[1727356337618,14.3432,152.75,152.71,14.3438]
[1727356342023,11.07,152.74,152.71,3.2738]
[1727356342615,11.07,152.74,152.7,3.2741]
[1727356343325,14.3434,152.74,152.7,3.2741]
[1727356344225,11.07,152.73,152.7,3.2741]
[1727356345425,11.07,152.73,152.69,14.3444]
[1727356345426,3.2738,152.72,152.69,14.3444]
[1727356349835,3.2736,152.73,152.69,14.3444]
[1727356354838,3.2736,152.73,152.7,3.2742]
[1727356355636,3.2738,152.72,152.67,11.24148781]
[1727356355841,3.2738,152.72,152.67,18.956]
[1727356356041,11.07,152.73,152.68,3.2745]
[1727356356834,3.2741,152.71,152.67,22.2307]
[1727356358032,3.2743,152.7,152.67,7.886]
[1727356358833,3.2744,152.7,152.67,7.886]
[1727356359034,3.2744,152.7,152.67,18.956]
[1727356360038,3.2744,152.7,152.67,22.2308]
[1727356363746,6.5455,152.77,152.67,22.2308]
[1727356363747,6.5455,152.77,152.68,14.3445]
[1727356363946,11.07,152.73,152.68,11.07]
[1727356364241,11.07,152.73,152.68,13.7106]
[1727356364439,11.07,152.74,152.68,13.7106]
[1727356364645,11.07,152.74,152.69,3.2744]
[1727356365142,3.2738,152.72,152.69,3.2744]
[1727356365648,11.07,152.74,152.68,16.9851]
[1727356365844,11.07,152.72,152.68,16.9851]
[1727356366746,11.07,152.71,152.68,2.6406]
[1727356368045,3.2743,152.7,152.68,2.6406]
[1727356369051,11.07,152.69,152.63,71.99668439]
[1727356369238,11.07,152.69,152.63,83.06668439]
[1727356369744,11.07,152.69,152.64,3.2754]
[1727356369745,3.2747,152.68,152.64,3.2754]
[1727356374050,11.07,152.67,152.64,3.2754]
[1727356374246,14.3448,152.67,152.63,3.2756]
[1727356374555,11.07,152.66,152.63,3.2756]
[1727356377853,11.07,152.66,152.64,3.2755]
[1727356378067,6.5455,152.77,152.62,19.0314]
[1727356378255,11.07,152.68,152.64,11.07]
[1727356378462,14.3448,152.67,152.64,3.2754]
[1727356378856,11.07,152.66,152.62,19.0314]
[1727356379161,11.07,152.66,152.62,7.9614]
[1727356379860,11.07,152.66,152.63,3.2756]
[1727356382059,3.28026729,152.78,152.64,3.2753]
[1727356382060,3.2747,152.68,152.64,3.2753]
[1727356382258,14.3447,152.68,152.64,3.2753]
[1727356382455,11.07,152.67,152.62,7.9614]
[1727356382657,11.07,152.65,152.62,11.2372]
[1727356382958,11.07,152.65,152.62,5.2662]
[1727356383166,11.07,152.64,152.62,2.6096]
[1727356383660,11.07,152.63,152.57,5.3949]
[1727356383854,11.07,152.63,152.57,19.2542]
[1727356384655,3.33005102,152.7,152.58,11.07]
[1727356384862,11.07,152.64,152.58,11.07]
[1727356385763,11.07,152.64,152.6,3.2762]
[1727356385764,14.3455,152.64,152.6,3.2762]
[1727356387361,11.07,152.63,152.6,3.2762]
[1727356388462,11.07,152.65,152.6,11.07]
[1727356388864,14.3453,152.65,152.61,3.276]
[1727356392873,14.3453,152.65,152.62,3.2759]
[1727356394771,11.07,152.64,152.62,3.2759]
[1727356395171,11.07,152.64,152.61,3.2761]
[1727356395172,14.3455,152.64,152.61,3.2761]
[1727356395676,3.2752,152.66,152.61,11.07]
[1727356395873,14.3452,152.66,152.61,11.07]
[1727356396276,14.3452,152.66,152.63,3.2756]
[1727356397277,11.07,152.66,152.64,3.2754]
[1727356397476,11.07,152.65,152.64,3.2754]
[1727356398074,11.07,152.65,152.63,3.2756]
[1727356398473,11.07,152.64,152.57,5.3981]
[1727356398677,14.3468,152.58,152.52,11.07]
[1727356398975,6.5491,152.69,152.53,3.23556813]
[1727356399177,14.3468,152.58,152.54,3.2776]
[1727356399380,11.07,152.56,152.52,11.07]
[1727356399677,19.67,152.74,152.5,2.6574]
[1727356399880,11.07,152.56,152.51,11.07]
[1727356400380,11.07,152.53,152.5,2.6574]
[1727356400775,11.07,152.53,152.5,5.9357]
[1727356401874,11.07,152.55,152.5,5.9357]
[1727356403180,19.67,152.7,152.52,11.07]
[1727356403474,11.07,152.57,152.5,2.6574]
[1727356403678,11.07,152.59,152.54,11.07]
[1727356403882,11.07,152.59,152.54,14.30594989]
[1727356404076,11.07,152.59,152.55,2.621]
[1727356404376,11.07,152.59,152.56,3.277]
[1727356404582,11.07,152.61,152.56,14.347]
[1727356404876,11.07,152.61,152.56,16.9549]
[1727356409182,11.07,152.61,152.57,3.2769]
[1727356409582,3.2758,152.63,152.56,13.6779]
[1727356409785,11.07,152.62,152.56,13.6779]
[1727356410386,11.07,152.62,152.57,3.2769]
[1727356411883,11.07,152.59,152.56,2.6079]
[1727356414288,11.07,152.59,152.56,5.8851]
[1727356415394,11.07,152.59,152.57,3.277]
[1727356415585,11.07,152.59,152.56,2.6079]
[1727356415586,11.07,152.6,152.56,13.6779]
[1727356415991,11.07,152.6,152.57,3.2769]
[1727356417889,11.07,152.6,152.56,13.6779]
[1727356418093,11.07,152.62,152.56,13.6779]
[1727356418891,14.346,152.62,152.56,13.6779]
[1727356419092,11.07,152.6,152.56,13.6779]
[1727356419493,11.07,152.6,152.57,3.2768]
[1727356420493,11.07,152.6,152.58,3.2766]
[1727356421399,11.07,152.6,152.57,3.2769]
[1727356421600,11.07,152.61,152.56,13.6779]
[1727356421793,1.0,152.69,152.56,13.6779]
[1727356421794,1.0,152.69,152.59,11.07]
[1727356422101,11.07,152.64,152.6,3.2762]
[1727356422297,1.0,152.69,152.6,11.07]
[1727356422594,1.0,152.69,152.6,14.3462]
[1727356422595,11.07,152.65,152.6,14.3462]
[1727356423201,14.3454,152.65,152.61,3.2761]
[1727356423703,11.07,152.64,152.61,3.2761]
[1727356425890,3.2754,152.65,152.61,3.2761]
[1727356426097,11.07,152.64,152.61,3.2761]
[1727356428388,14.3454,152.65,152.61,3.2761]
[1727356434705,3.2756,152.64,152.61,3.2761]
[1727356435505,3.2757,152.63,152.6,14.3463]
[1727356437909,3.2757,152.63,152.6,3.2763]
[1727356438409,3.2757,152.63,152.59,14.3464]
[1727356438604,11.07,152.61,152.56,2.6079]
[1727356438807,11.07,152.6,152.56,2.6079]
[1727356439205,3.2765,152.59,152.56,2.6079]
[1727356439800,3.2765,152.59,152.56,5.8851]
[1727356440203,11.07,152.6,152.56,5.8851]
[1727356440412,11.07,152.6,152.56,2.6079]
[1727356441005,11.07,152.59,152.56,2.6079]
[1727356441807,14.3466,152.59,152.56,2.6079]
[1727356442006,11.07,152.6,152.56,2.6079]
[1727356442909,14.3465,152.6,152.56,5.8849]
[1727356447809,14.3465,152.6,152.57,3.277]
[1727356451611,3.2766,152.59,152.56,5.8849]
[1727356451809,14.3466,152.59,152.56,2.6079]
[1727356452015,14.3466,152.59,152.55,2.621]
[1727356452318,14.3466,152.59,152.55,5.8982]
[1727356452519,3.2768,152.58,152.55,5.8982]
[1727356452934,14.347,152.57,152.5,5.2003]
[1727356453215,11.07,152.56,152.51,11.07]
[1727356453409,11.07,152.54,152.5,7.8393]
[1727356453609,11.07,152.54,152.51,3.2781]
[1727356454017,11.07,152.54,152.5,7.8393]
[1727356454419,11.07,152.54,152.51,3.2781]
[1727356455020,11.07,152.54,152.51,14.3481]
[1727356458221,11.07,152.55,152.51,14.3481]
[1727356458421,11.07,152.55,152.52,3.278]
[1727356462221,11.07,152.55,152.53,3.2778]
[1727356469025,11.07,152.56,152.51,11.07]
[1727356469235,11.07,152.58,152.53,11.07]
[1727356470129,14.3468,152.58,152.53,11.07]
[1727356470721,14.3468,152.58,152.55,3.2773]
[1727356471325,3.2768,152.58,152.55,3.2773]
[1727356471521,3.2768,152.58,152.56,3.2772]
[1727356471522,14.3468,152.58,152.56,3.2772]
[1727356472436,11.07,152.59,152.57,3.2769]
[1727356475136,11.07,152.59,152.58,3.2768]
[1727356475335,11.07,152.59,152.53,3.27485611]
[1727356475336,3.2763,152.61,152.56,11.07]
[1727356475530,14.3463,152.61,152.56,11.07]
[1727356475727,14.3463,152.61,152.58,3.2766]
[1727356476040,14.3464,152.6,152.58,3.2766]
[1727356476837,3.2775,152.55,152.52,3.2779]
[1727356477039,3.2775,152.55,152.5,7.8393]
[1727356477040,11.07,152.53,152.5,7.8393]
[1727356477334,11.07,152.53,152.5,5.28]
[1727356477734,11.07,152.53,152.5,8.5584]
[1727356478133,11.07,152.53,152.5,5.28]
[1727356478638,11.07,152.52,152.5,5.28]
[1727356480333,11.07,152.52,152.51,3.2783]
[1727356480534,11.07,152.54,152.51,3.2783]
[1727356481344,11.07,152.54,152.5,8.5584]
[1727356482045,3.2,152.65,152.51,11.07]
[1727356482338,11.07,152.56,152.51,11.07]
[1727356483245,11.07,152.56,152.52,3.2779]
[1727356485645,14.3472,152.56,152.52,3.2779]
[1727356486742,14.3472,152.56,152.51,3.2781]
[1727356486944,14.3472,152.56,152.51,14.3481]
[1727356487737,11.07,152.55,152.51,14.3481]
[1727356487937,11.07,152.54,152.5,8.5583]
[1727356488446,14.3476,152.54,152.5,8.5583]
[1727356489440,11.07,152.55,152.51,11.07]
[1727356490460,14.3475,152.55,152.51,3.2781]
[1727356497249,14.3475,152.55,152.5,16.35]
[1727356497653,11.07,152.55,152.5,16.35]
[1727356498244,11.07,152.54,152.5,16.35]
[1727356498748,14.3477,152.54,152.5,19.6283]
[1727356500254,14.3477,152.54,152.5,8.5583]
[1727356502655,11.07,152.53,152.5,8.5583]
[1727356503764,11.07,152.53,152.5,3.2783]
[1727356504558,3.2777,152.54,152.5,3.2783]
[1727356504854,14.3477,152.54,152.5,3.2783]
[1727356505757,11.07,152.53,152.5,3.2783]
[1727356512159,6.552,152.62,152.5,11.07]
[1727356512353,11.07,152.55,152.5,11.07]
[1727356513264,11.07,152.55,152.52,3.278]
[1727356513761,14.3474,152.55,152.52,3.278]
[1727356516058,11.07,152.54,152.52,3.278]
[1727356516562,11.07,152.54,152.49,11.07]
[1727356517161,11.07,152.55,152.52,3.2779]
[1727356518763,6.552,152.62,152.54,3.2776]
[1727356518958,1.0,152.64,152.55,11.07]
[1727356518959,11.07,152.59,152.55,11.07]
[1727356519357,11.07,152.59,152.56,3.2771]
[1727356519859,11.07,152.58,152.56,3.2771]
[1727356520165,1.0,152.64,152.54,2.5358]
[1727356520166,11.07,152.57,152.54,2.5358]
[1727356521070,11.07,152.57,152.54,5.8132]
[1727356521969,14.347,152.57,152.54,5.8132]
[1727356522169,14.347,152.57,152.54,2.5358]
[1727356523167,11.07,152.57,152.54,2.5358]
[1727356523373,3.2773,152.56,152.53,2.6446]
[1727356523676,14.3473,152.56,152.53,2.6446]
[1727356523871,1.0,152.64,152.52,3.278]
[1727356523872,11.07,152.54,152.52,3.278]
[1727356526176,11.07,152.54,152.49,11.07]
[1727356527268,11.07,152.54,152.5,11.07]
[1727356527567,14.3473,152.56,152.5,11.07]
[1727356527770,14.3473,152.56,152.52,3.2779]
[1727356531278,11.07,152.56,152.53,3.2778]
[1727356533979,11.07,152.56,152.51,11.07]
[1727356535082,11.07,152.56,152.53,3.2777]
[1727356537780,1.0,152.64,152.55,11.07]
[1727356537986,1.0,152.64,152.56,11.07]
[1727356538187,22.55800863,152.71,152.59,3.2765]
[1727356538188,3.2761,152.62,152.59,3.2765]
[1727356538586,6.548,152.71,152.58,11.07]
[1727356538785,14.3458,152.63,152.59,3.2764]
[1727356539286,11.07,152.63,152.59,3.2764]
[1727356539488,6.548,152.71,152.61,3.276]
[1727356539684,11.07,152.65,152.61,3.276]
[1727356539988,3.2756,152.64,152.61,3.276]
[1727356540681,3.2756,152.64,152.62,3.2759]
[1727356541389,3.2754,152.65,152.62,3.2759]
[1727356543282,3.2755,152.64,152.62,3.2759]
[1727356544392,11.07,152.65,152.61,3.2761]
[1727356545092,3.2756,152.64,152.61,3.2761]
[1727356546890,11.07,152.65,152.59,11.07]
[1727356547196,3.2757,152.63,152.6,3.2763]
[1727356547394,11.07,152.63,152.55,1.9689]
[1727356547591,3.276,152.62,152.58,11.07]
[1727356547795,14.346,152.62,152.58,11.07]
[1727356549694,14.346,152.62,152.58,14.3467]
[1727356551193,3.276,152.62,152.58,14.3467]
[1727356552404,3.276,152.62,152.59,11.07]
[1727356554602,3.2756,152.64,152.6,14.3461]
[1727356555005,3.2756,152.64,152.61,11.07]
[1727356555203,6.5464,152.75,152.63,11.07]
[1727356555395,6.5464,152.75,152.61,3.34709233]
[1727356555396,6.5464,152.75,152.65,11.07]
[1727356555600,3.2749,152.67,152.65,11.07]
[1727356555801,3.2749,152.67,152.64,11.07]
[1727356556501,3.2749,152.67,152.64,14.3454]
[1727356559104,11.07,152.69,152.64,11.07]
[1727356559811,3.2749,152.67,152.64,14.3453]
[1727356560112,11.07,152.68,152.64,3.2753]
[1727356560412,3.275,152.67,152.64,3.2753]
[1727356561802,3.275,152.66,152.64,3.2753]
[1727356562711,3.275,152.66,152.63,16.3929]
[1727356566615,3.275,152.66,152.63,13.1173]
[1727356567115,14.345,152.66,152.63,13.1173]
[1727356567314,11.07,152.65,152.63,2.0473]
[1727356567513,11.07,152.64,152.63,2.0473]
[1727356567724,11.07,152.64,152.62,2.0067]
[1727356567907,3.2757,152.63,152.62,2.0067]
[1727356569208,14.3456,152.64,152.62,2.0067]
[1727356570515,14.3456,152.64,152.57,1.2801]
[1727356570516,11.07,152.63,152.57,1.2801]
[1727356570816,3.31672387,152.67,152.57,1.2801]
[1727356570817,11.07,152.58,152.57,1.2801]
[1727356571713,14.3468,152.58,152.57,1.2801]
[1727356572916,11.07,152.58,152.55,1.3663]
[1727356573112,6.5502,152.66,152.55,1.3663]
[1727356573313,11.07,152.57,152.55,1.3663]
[1727356573714,14.3471,152.57,152.55,4.6436]
[1727356574014,11.07,152.6,152.55,13.8151]
[1727356574210,90.35213905,152.92,152.55,13.8151]
[1727356574211,6.546,152.76,152.59,11.07]
[1727356574412,11.07,152.67,152.61,11.07]
[1727356574613,3.2754,152.65,152.61,11.07]
[1727356575225,3.2754,152.65,152.62,3.2758]
[1727356575414,3.2755,152.64,152.62,3.2758]
[1727356576289,1.0,152.74,152.63,13.6422]
[1727356576416,4.23902032,152.74,152.66,11.07]
[1727356576724,4.23902032,152.74,152.68,3.2746]
[1727356576725,3.2739,152.72,152.68,3.2746]
[1727356577115,11.07,152.73,152.66,11.07]
[1727356577321,3.2742,152.7,152.66,14.345]
[1727356577520,11.07,152.7,152.64,1.3355]
[1727356577732,11.07,152.7,152.64,12.4055]
[1727356577916,3.2746,152.69,152.65,3.2751]
[1727356579623,11.07,152.71,152.66,11.07]
[1727356580223,3.2741,152.71,152.67,11.07]
[1727356580731,11.07,152.73,152.67,11.07]
[1727356581822,11.07,152.73,152.67,14.3448]
[1727356581823,3.2742,152.7,152.67,14.3448]
[1727356582530,3.2742,152.7,152.66,14.345]
[1727356582730,3.2744,152.69,152.66,14.345]
[1727356583530,3.2744,152.69,152.66,11.07]
[1727356583731,1.0,152.74,152.64,1.3355]
[1727356583732,11.07,152.68,152.64,1.3355]
[1727356584433,3.2749,152.67,152.64,1.3355]
[1727356585732,3.2751,152.66,152.64,1.3355]
[1727356591432,3.2749,152.67,152.64,1.3355]
[1727356591637,11.07,152.68,152.64,1.3355]
[1727356591831,3.275,152.66,152.64,1.3355]
[1727356593239,1.0,152.74,152.63,2.5722]
[1727356593240,11.07,152.67,152.63,2.5722]
[1727356595040,11.07,152.64,152.57,1.3025]
[1727356595241,11.07,152.63,152.58,2.7037]
[1727356595534,11.07,152.63,152.58,5.9803]
[1727356595935,3.2765,152.6,152.58,2.7037]
[1727356596938,14.3465,152.59,152.58,2.7037]
[1727356597233,14.3465,152.59,152.58,1.3983]
[1727356597434,11.07,152.59,152.54,1.3931]
[1727356597740,11.07,152.56,152.54,1.3931]
[1727356597940,3.2774,152.55,152.54,1.3931]
[1727356609744,3.2776,152.54,152.51,4.6412]
[1727356609946,3.2776,152.54,152.51,16.991]
[1727356610147,3.2776,152.54,152.51,13.7128]
[1727356610748,3.2778,152.53,152.51,13.7128]
[1727356611148,11.07,152.55,152.51,13.7128]
[1727356611348,3.2777,152.54,152.51,13.7128]
[1727356613550,11.07,152.54,152.51,2.6428]
[1727356616843,3.278,152.52,152.51,2.6428]
[1727356619052,3.278,152.52,152.45,3.28034838]
[1727356619053,11.07,152.52,152.47,3.2791]
[1727356619253,11.07,152.52,152.46,13.7318]
[1727356620157,3.2786,152.5,152.47,3.2791]
[1727356620556,11.07,152.55,152.49,11.07]
[1727356620859,3.278,152.52,152.51,11.07]
[1727356621553,3.2779,152.53,152.51,11.07]
[1727356622582,3.2779,152.53,152.51,14.3483]
[1727356623450,3.2779,152.53,152.5,14.3484]
[1727356624359,3.2781,152.52,152.5,14.3484]
[1727356625256,3.2781,152.52,152.5,3.2784]
[1727356626854,6.5528,152.6,152.5,11.07]
[1727356627060,11.07,152.56,152.51,12.3532]
[1727356627256,11.07,152.56,152.52,1.2793]
[1727356627456,14.3472,152.56,152.53,3.2776]
[1727356627659,11.07,152.56,152.53,3.2776]
[1727356627860,11.07,152.56,152.52,1.2793]
[1727356628262,3.2775,152.55,152.52,4.5573]
[1727356631171,3.2776,152.54,152.52,1.2793]
[1727356631372,11.07,152.55,152.52,1.2793]
[1727356632270,3.2776,152.54,152.52,1.2793]
[1727356632873,3.2778,152.53,152.52,1.2793]
[1727356635874,3.278,152.52,152.51,1.2832]
[1727356636972,14.348,152.53,152.51,1.2832]
[1727356637778,3.278,152.52,152.51,1.2832]
[1727356641171,3.278,152.52,152.48,1.3019]
[1727356641172,11.07,152.53,152.48,1.3019]
[1727356641373,11.07,152.49,152.48,1.3019]
[1727356641774,14.3487,152.49,152.48,1.3019]
[1727356643471,3.2791,152.48,152.45,1.369]
[1727356643682,11.07,152.47,152.45,1.369]
[1727356643881,11.07,152.47,152.45,4.6484]
[1727356644481,11.07,152.47,152.45,1.369]
[1727356646586,14.3491,152.48,152.45,1.369]
[1727356646785,14.3491,152.48,152.45,4.6485]
[1727356652087,3.2791,152.47,152.45,1.369]
[1727356652682,14.349,152.48,152.45,4.6485]
[1727356653790,3.20660753,152.54,152.45,12.439]
[1727356653991,11.07,152.5,152.45,12.439]
[1727356654893,11.07,152.5,152.48,3.2789]
[1727356655189,3.2783,152.51,152.47,11.07]
[1727356655392,11.07,152.51,152.47,3.279]
[1727356655583,11.07,152.54,152.48,11.07]
[1727356655783,11.07,152.54,152.5,11.07]
[1727356656088,11.07,152.54,152.49,12.4594]
[1727356656291,11.07,152.54,152.5,3.2784]
[1727356657087,3.2779,152.53,152.49,15.738]
[1727356657488,3.2779,152.53,152.49,12.4594]
[1727356657889,14.3477,152.54,152.5,3.2785]
[1727356658084,14.3477,152.54,152.5,4.6863]
[1727356660093,3.2779,152.53,152.5,4.6863]
[1727356662787,14.3477,152.54,152.5,4.6863]
[1727356662994,3.2777,152.54,152.5,4.6863]
[1727356663194,14.3477,152.54,152.5,4.6863]
[1727356663494,11.07,152.54,152.5,4.6863]
[1727356664795,3.2778,152.53,152.5,4.6863]
[1727356665596,14.3477,152.54,152.51,3.2782]
[1727356666603,3.2777,152.54,152.51,3.2782]
[1727356666897,14.3477,152.54,152.51,3.2782]
[1727356672704,11.07,152.54,152.51,3.2782]
[1727356673701,14.3477,152.54,152.51,3.2782]
[1727356674907,11.07,152.53,152.5,2.7268]
[1727356676804,14.3479,152.53,152.5,2.7268]
[1727356676999,14.3479,152.53,152.5,6.0052]
[1727356677512,3.23647097,152.59,152.53,3.2777]
[1727356677714,11.07,152.55,152.5,13.7968]
[1727356678210,14.3476,152.55,152.52,3.278]
[1727356678414,3.25680777,152.59,152.5,2.7268]
[1727356678415,11.07,152.53,152.5,2.7268]
[1727356679806,3.2782,152.52,152.5,6.0052]
[1727356681417,3.2782,152.52,152.5,2.7268]
[1727356681810,3.2782,152.52,152.5,1.4078]
[1727356683910,3.2779,152.53,152.5,4.6862]
[1727356684112,3.2779,152.53,152.5,1.4078]
[1727356686322,14.3477,152.54,152.5,1.4078]
[1727356686516,6.5524,152.61,152.52,11.07]
[1727356686711,18.76485926,152.65,152.55,11.07]
[1727356686910,3.277,152.57,152.55,14.3472]
[1727356687418,11.07,152.59,152.55,14.3472]
[1727356687624,3.2769,152.58,152.56,3.2772]
[1727356688025,3.2769,152.58,152.56,6.0745]
[1727356689017,14.347,152.57,152.56,2.7973]
[1727356689224,14.347,152.57,152.56,1.4041]
[1727356689522,11.07,152.57,152.52,1.3932]
[1727356689719,11.07,152.55,152.53,3.2777]
[1727356690718,14.3471,152.57,152.53,3.2777]
[1727356691019,6.5508,152.65,152.52,2.6687]
[1727356691224,6.5508,152.65,152.54,11.07]
[1727356691410,11.07,152.59,152.55,3.2773]
[1727356692420,3.277,152.57,152.54,3.2776]
[1727356692620,11.07,152.55,152.52,2.6687]
[1727356693216,14.3475,152.55,152.52,2.6687]
[1727356693520,11.07,152.53,152.52,2.6687]
[1727356694824,14.3478,152.53,152.52,2.6687]
[1727356696419,3.278,152.52,152.47,11.07]
[1727356696625,14.348,152.52,152.47,11.07]
[1727356696824,14.348,152.52,152.49,3.2786]
[1727356698620,11.07,152.52,152.49,3.2786]
[1727356699325,14.3479,152.53,152.49,3.2786]
[1727356699726,14.3479,152.53,152.49,6.0245]
[1727356700624,14.3479,152.53,152.5,3.2784]
[1727356700818,3.2779,152.53,152.5,3.2784]
[1727356701021,14.3479,152.53,152.5,3.2784]
[1727356704833,14.3481,152.52,152.49,6.0245]
[1727356705126,11.07,152.5,152.43,1.3748]
[1727356705326,14.3489,152.48,152.44,6.0323]
[1727356706228,11.07,152.48,152.44,2.7527]
[1727356706429,11.07,152.46,152.44,2.7527]
[1727356706928,11.07,152.47,152.44,2.7527]
[1727356708730,11.07,152.47,152.44,6.0324]
[1727356708931,11.07,152.46,152.44,2.7527]
[1727356709128,11.07,152.45,152.44,2.7527]
[1727356709631,3.2795,152.46,152.44,2.7527]
[1727356709632,14.3495,152.46,152.44,2.7527]
[1727356710229,11.07,152.45,152.36,1.3707]
[1727356710433,11.07,152.43,152.37,13.749]
[1727356710829,14.35,152.43,152.39,3.2807]
[1727356711031,11.07,152.43,152.37,13.749]
[1727356711229,11.07,152.43,152.41,3.2804]
[1727356711429,11.07,152.44,152.41,3.2804]
[1727356713940,14.3498,152.44,152.41,3.2804]
[1727356717744,11.07,152.44,152.41,3.2804]
[1727356720841,3.2794,152.46,152.42,3.2801]
[1727356721050,11.07,152.46,152.4,11.07]
[1727356721348,3.19932586,152.55,152.41,11.07]
[1727356721547,11.07,152.46,152.42,2.7563]
[1727356722538,11.07,152.46,152.44,3.2796]
[1727356722946,11.07,152.46,152.42,2.7563]
[1727356723364,11.07,152.46,152.43,3.2799]
[1727356725250,11.07,152.46,152.44,3.2798]
[1727356726146,11.07,152.46,152.43,3.2798]
[1727356726547,11.07,152.45,152.42,2.7563]
[1727356726747,11.07,152.45,152.42,6.0363]
[1727356726943,11.07,152.45,152.42,2.7563]
[1727356727745,11.07,152.45,152.43,3.28]
[1727356729643,11.07,152.45,152.42,6.0364]
[1727356729843,11.07,152.45,152.42,2.7563]
[1727356730654,11.07,152.45,152.43,3.2799]
[1727356731851,14.3496,152.45,152.42,6.0364]
[1727356732248,11.07,152.44,152.42,2.7563]
[1727356733156,11.07,152.44,152.42,6.0364]
[1727356734251,11.07,152.44,152.42,2.7563]
[1727356734450,14.3499,152.44,152.42,2.7563]
[1727356734755,11.07,152.44,152.42,2.7563]
[1727356735755,14.3498,152.44,152.42,2.7563]
[1727356737957,14.3498,152.44,152.42,1.3731]
[1727356738154,3.28,152.43,152.4,3.2805]
[1727356738357,14.35,152.43,152.4,3.2805]
[1727356738557,11.07,152.41,152.37,2.6499]
[1727356739163,11.07,152.41,152.39,3.2807]
[1727356740061,11.07,152.46,152.4,11.07]
[1727356740261,3.21869257,152.49,152.41,11.07]
[1727356740456,3.21869257,152.49,152.44,11.07]
[1727356740759,3.21869257,152.49,152.46,11.07]
[1727356740964,14.3484,152.51,152.47,3.279]
[1727356742069,3.2785,152.5,152.47,3.279]